bitfinex/quotes_ETHUSD_20241018
["timestamp","ask_amount","ask_price","bid_price","bid_amount"]
[1729274909620,0.05390439,2648.1,2647.4,1.83848792]
[1729274909917,0.2583,2648.2,2647.4,1.83848792]
[1729274910269,0.05390439,2648.1,2647.4,1.83848792]
[1729274910682,0.2583,2648.2,2647.4,1.83848792]
[1729274911080,1.18084131,2648.7,2647.4,1.83848792]
[1729274911081,0.05390439,2648.1,2647.4,1.83848792]
[1729274911294,0.05390439,2648.1,2647.1,0.5691033]
[1729274911295,0.2583,2648.0,2647.2,1.3309]
[1729274911512,0.2583,2648.0,2647.4,0.55]
[1729274911913,0.05386436,2647.9,2647.4,0.55]
[1729274912434,0.2583,2648.0,2647.6,0.55]
[1729274912732,0.05385562,2647.9,2647.6,0.55]
[1729274913026,1.57445508,2648.8,2647.8,0.55]
[1729274913027,0.2583,2648.2,2647.8,0.55]
[1729274913239,0.2583,2648.2,2647.8,1.07658792]
[1729274913387,0.2583,2648.4,2648.3,3.0]
[1729274913579,0.2583,2648.4,2648.1,0.04277572]
[1729274913821,0.2583,2648.4,2648.1,0.19233636]
[1729274914787,0.0523315,2648.3,2648.1,0.19233636]
[1729274914984,0.2583,2648.5,2648.3,3.0]
[1729274915209,0.05241384,2648.4,2648.1,0.7793063]
[1729274915655,0.05241384,2648.4,2648.2,0.0755084]
[1729274915858,0.05241384,2648.4,2648.2,0.29638987]
[1729274916179,0.05241384,2648.4,2648.2,0.22088147]
[1729274917937,0.05241384,2648.4,2648.3,0.55]
[1729274918276,0.2583,2648.7,2648.3,0.55]
[1729274919952,0.2583,2649.4,2648.4,0.7724]
[1729274920296,0.31158586,2649.3,2648.4,0.7724]
[1729274921373,0.31158586,2649.3,2648.5,0.07528672]
[1729274921573,0.31158586,2649.3,2648.4,0.7724]
[1729274922182,0.31158586,2649.3,2648.5,0.55]
[1729274923675,0.31158586,2649.3,2648.2,0.74746939]
[1729274923676,0.05328586,2649.3,2648.6,0.8204]
[1729274923909,0.05328586,2649.3,2648.7,0.55]
[1729274924061,0.2583,2649.5,2648.8,0.18969879]
[1729274924412,0.05344247,2649.4,2648.8,0.18969879]
[1729274924725,0.05344247,2649.4,2648.9,1.44588635]
[1729274925064,0.2583,2649.5,2648.9,1.44588635]
[1729274925271,0.2583,2649.5,2648.9,1.3704]
[1729274925475,0.2583,2649.5,2649.0,0.20866867]
[1729274925905,0.2583,2650.2,2649.0,0.20866867]
[1729274926408,0.31273372,2650.1,2649.0,0.20866867]
[1729274927878,0.31273372,2650.1,2649.1,0.55]
[1729274929206,0.31273372,2650.1,2649.5,3.0]
[1729274929684,0.31273372,2650.1,2649.1,0.55]
[1729274929685,0.31273372,2650.1,2649.3,0.7914]
[1729274930411,0.2583,2650.1,2649.3,0.7914]
[1729274933917,0.2583,2650.1,2649.8,3.0]
[1729274934330,0.2583,2650.1,2649.8,0.3]
[1729274934537,0.2583,2650.1,2649.3,0.7914]
[1729274934894,0.2583,2650.1,2649.8,3.0]
[1729274936255,0.2583,2650.1,2649.3,0.7914]
[1729274944362,0.2583,2650.1,2649.8,3.0]
[1729274944517,0.2583,2650.1,2649.3,0.7914]
[1729274946357,0.2583,2650.1,2649.0,1.00716867]
[1729274946862,0.2583,2650.1,2649.1,0.55]
[1729274951066,0.2583,2650.1,2649.4,0.7941]
[1729274951231,0.2583,2650.1,2649.8,3.0]
[1729274951556,0.2583,2650.1,2649.5,0.57351255]
[1729274951915,0.2583,2650.1,2649.5,0.55]
[1729274953435,0.2583,2651.4,2649.7,0.55]
[1729274953618,0.2583,2651.2,2649.9,0.55]
[1729274953837,0.2583,2651.2,2649.8,0.18978879]
[1729274954035,0.2583,2651.0,2649.8,0.18978879]
[1729274954268,0.04913075,2650.9,2649.8,0.18978879]
[1729274954422,0.2583,2650.8,2649.8,0.18978879]
[1729274954619,0.04896636,2650.7,2649.8,0.18978879]
[1729274954864,0.2583,2650.6,2649.8,0.18978879]
[1729274955720,0.2583,2650.6,2649.6,3.0]
[1729274955915,0.2583,2650.6,2649.1,1.30998792]
[1729274956159,0.2583,2650.6,2649.2,0.52658792]
[1729274956343,0.3071216,2650.5,2649.2,0.52658792]
[1729274956837,0.3071216,2650.5,2649.7,3.0]
[1729274957158,0.3071216,2650.5,2649.2,0.52658792]
[1729274957526,0.2583,2650.4,2648.8,1.67828857]
[1729274957921,0.04865717,2650.3,2648.8,1.67828857]
[1729274958236,0.2583,2650.2,2648.8,1.67828857]
[1729274958445,0.0483879,2650.1,2648.8,1.67828857]
[1729274958649,0.2583,2650.0,2649.1,0.52658792]
[1729274959026,0.2583,2649.8,2649.1,0.52658792]
[1729274960674,0.2583,2649.6,2649.1,0.52658792]
[1729274961089,0.2583,2649.6,2648.9,0.758]
[1729274961289,0.2583,2649.6,2649.0,0.73525659]
[1729274961496,0.2583,2649.6,2649.1,0.52658792]
[1729274963801,0.2583,2649.6,2649.5,3.0]
[1729274964156,0.2583,2649.6,2649.1,0.52658792]
[1729274964375,0.2583,2649.6,2649.5,3.0]
[1729274964901,0.2583,2649.6,2649.2,0.55]
[1729274965072,0.2583,2649.6,2649.5,3.0]
[1729274965783,0.2583,2649.6,2649.2,0.55]
[1729274966300,0.2583,2649.6,2649.5,3.0]
[1729274966462,0.2583,2649.6,2649.5,3.3]
[1729274966805,1.87824561,2650.5,2649.5,3.3]
[1729274966806,0.2583,2650.3,2650.1,3.0]
[1729274966957,1.57236889,2650.7,2650.0,0.52658792]
[1729274966958,1.17927667,2650.7,2650.0,0.52658792]
[1729274967160,1.9679727,2651.0,2649.7,0.55]
[1729274967161,0.04454121,2650.2,2649.7,0.55]
[1729274967467,1.17927667,2650.9,2649.7,0.55]
[1729274967664,0.04389003,2650.8,2649.7,0.55]
[1729274968056,1.2231667,2650.8,2649.7,0.55]
[1729274968976,0.04389003,2650.8,2649.7,0.55]
[1729274969174,1.2231667,2650.8,2649.7,0.55]
[1729274969662,0.04389003,2650.8,2649.7,0.55]
[1729274970003,0.04389003,2650.8,2649.7,1.07658792]
[1729274970300,0.04389003,2650.8,2649.8,0.18986879]
[1729274970857,1.2231667,2650.8,2649.8,0.18986879]
[1729274971061,1.2231667,2650.8,2649.5,0.55]
[1729274971290,1.17927667,2650.8,2649.5,0.55]
[1729274972081,1.17927667,2650.7,2649.5,0.55]
[1729274972694,1.57236889,2650.9,2649.5,0.55]
[1729274972695,1.17927667,2650.9,2649.5,0.55]
[1729274972917,0.04411991,2650.8,2649.7,0.55]
[1729274973188,0.04411991,2650.8,2650.0,0.7505]
[1729274973509,1.17927667,2651.1,2650.0,0.7505]
[1729274973686,0.04245488,2650.7,2650.0,0.7505]
[1729274973881,1.17927667,2651.0,2650.0,1.27708792]
[1729274974226,0.04267399,2650.9,2650.1,0.52658792]
[1729274974607,1.17927667,2651.1,2650.1,0.52658792]
[1729274974813,0.0425918,2650.8,2650.1,0.52658792]
[1729274975000,1.22203284,2651.0,2650.1,0.52658792]
[1729274975199,0.04250961,2650.7,2650.1,0.52658792]
[1729274975421,0.27516456,2651.2,2650.1,0.52658792]
[1729274975721,1.45444123,2651.2,2650.3,3.0]
[1729274975928,1.45444123,2651.2,2650.1,0.52658792]
[1729274975929,0.34551936,2651.1,2650.1,0.52658792]
[1729274976131,0.34551936,2651.1,2649.8,0.55]
[1729274976647,1.17927667,2651.0,2649.7,0.52658792]
[1729274976856,1.17927667,2650.9,2649.9,0.52658792]
[1729274977051,1.22197474,2650.9,2649.9,0.52658792]
[1729274977229,0.04269807,2650.9,2649.9,0.52658792]
[1729274977546,0.35240053,2650.9,2649.9,0.52658792]
[1729274977705,0.04269807,2650.9,2649.9,1.29778792]
[1729274978945,0.04269807,2650.9,2649.9,0.7712]
[1729274980442,1.17927667,2651.3,2649.9,0.7712]
[1729274980644,0.04138094,2650.8,2649.9,0.7712]
[1729274980804,1.17927667,2651.2,2649.9,0.7712]
[1729274980999,0.04129874,2650.7,2649.6,0.52658792]
[1729274981201,1.17927667,2651.2,2649.8,0.55]
[1729274981502,1.49605558,2651.1,2649.8,0.55]
[1729274982179,0.31677891,2651.1,2649.8,0.55]
[1729274984056,1.49605558,2651.1,2649.8,0.55]
[1729274989689,1.49605558,2651.1,2649.8,1.07658792]
[1729274990640,1.49605558,2651.1,2649.5,0.77134955]
[1729274991014,1.48611912,2651.0,2649.8,0.52658792]
[1729274991404,0.04148722,2650.9,2649.8,0.52658792]
[1729274992843,0.04148722,2650.9,2649.9,0.07546281]
[1729274993242,0.04148722,2650.9,2649.8,0.52658792]
[1729274993444,0.35148474,2650.9,2649.9,0.52658792]
[1729274994207,0.04148722,2650.9,2649.9,0.52658792]
[1729274995934,0.04148722,2650.9,2649.7,0.7905]
[1729274995935,0.04148722,2650.9,2649.8,0.55]
[1729274996133,0.04148722,2650.9,2649.8,1.07658792]
[1729274998644,0.04148722,2650.9,2649.8,0.52658792]
[1729274998859,0.04148722,2650.9,2649.5,3.39364955]
[1729274998860,1.17927667,2650.8,2649.5,3.39364955]
[1729274999025,1.17927667,2650.7,2649.5,4.98860243]
[1729274999228,1.22061918,2650.7,2649.6,0.52658792]
[1729275000469,0.04134251,2650.7,2649.6,0.52658792]
[1729275000672,0.04134251,2650.7,2649.7,0.49886024]
[1729275000823,0.04134251,2650.7,2649.7,1.02544816]
[1729275001025,0.04134251,2650.7,2649.8,0.52658792]
[1729275001224,1.17927667,2650.9,2649.8,0.52658792]
[1729275001469,0.04122749,2650.6,2649.8,0.52658792]
[1729275001764,1.17927667,2650.9,2649.8,0.52658792]
[1729275001968,0.27516456,2650.8,2649.8,0.52658792]
[1729275002296,0.31655644,2650.8,2649.8,0.52658792]
[1729275003202,0.04139188,2650.8,2649.9,0.55]
[1729275003551,1.17927667,2651.1,2649.9,0.55]
[1729275003779,0.04130749,2650.7,2649.9,0.55]
[1729275003986,1.17927667,2651.1,2649.9,0.55]
[1729275004164,1.57236889,2651.2,2649.9,0.55]
[1729275004165,0.04122529,2650.6,2649.9,0.78968482]
[1729275004361,1.45444123,2651.0,2649.9,0.78968482]
[1729275004571,0.04114308,2650.5,2649.9,0.23968482]
[1729275004881,1.17927667,2650.9,2649.7,0.49886024]
[1729275005089,1.17927667,2650.9,2649.7,1.02544816]
[1729275005293,0.04138968,2650.8,2649.8,0.52658792]
[1729275007506,0.04138968,2650.8,2649.9,0.7641]
[1729275007676,0.04138968,2650.8,2649.9,1.29068792]
[1729275007877,0.04138968,2650.8,2649.9,0.52658792]
[1729275008597,0.04138968,2650.8,2650.0,0.07528472]
[1729275008791,0.04138968,2650.8,2649.9,0.52658792]
[1729275010211,1.52748633,2650.8,2649.9,0.52658792]
[1729275010525,1.52748633,2650.8,2649.7,0.49886024]
[1729275010696,1.17927667,2650.6,2649.5,0.39364955]
[1729275010908,1.17927667,2650.5,2649.5,0.39364955]
[1729275011086,1.17927667,2650.3,2649.3,0.52658792]
[1729275011288,1.17927667,2650.4,2649.5,0.52658792]
[1729275011626,0.04098741,2650.3,2649.5,0.52658792]
[1729275012333,0.04098741,2650.3,2649.5,1.28628792]
[1729275012624,0.04098741,2650.3,2649.6,0.52658792]
[1729275012832,1.17927667,2650.5,2649.6,0.52658792]
[1729275013123,0.04090519,2650.2,2649.6,0.52658792]
[1729275013334,1.17927667,2650.5,2649.6,0.52658792]
[1729275013505,0.04082295,2650.1,2649.6,0.52658792]
[1729275013704,1.45444123,2650.5,2649.6,0.52658792]
[1729275013705,1.17927667,2650.5,2649.6,0.52658792]
[1729275013889,1.17927667,2650.6,2649.6,0.52658792]
[1729275014098,0.04106963,2650.4,2649.6,0.52658792]
[1729275014302,0.04115185,2650.5,2649.6,0.52658792]
[1729275014592,0.04106963,2650.4,2649.6,0.52658792]
[1729275015135,0.04106963,2650.4,2649.3,0.55]
[1729275015587,0.04106963,2650.4,2649.4,0.52658792]
[1729275017511,0.04106963,2650.4,2649.6,0.8308]
[1729275017686,0.04106963,2650.4,2649.7,0.52658792]
[1729275017886,1.17927667,2650.5,2649.7,0.52658792]
[1729275018133,0.04092174,2650.3,2650.1,3.0]
[1729275018343,0.04100396,2650.4,2650.1,3.3]
[1729275018484,1.17927667,2650.7,2650.1,3.3]
[1729275018485,0.04083952,2650.2,2650.1,3.3]
[1729275018692,1.17927667,2650.6,2650.1,0.3]
[1729275018901,1.17927667,2650.6,2649.7,0.52658792]
[1729275018902,0.04083952,2650.2,2649.7,0.52658792]
[1729275019104,1.17927667,2650.6,2649.7,0.52658792]
[1729275019300,0.04075729,2650.1,2649.7,0.52658792]
[1729275019531,1.17927667,2650.6,2649.7,0.52658792]
[1729275019828,0.04108618,2650.5,2649.7,0.52658792]
[1729275020001,0.04108618,2650.5,2649.8,0.58121166]
[1729275020203,1.17927667,2650.7,2649.8,0.55]
[1729275020407,0.04097551,2650.4,2649.7,0.55]
[1729275020597,1.17927667,2650.8,2649.7,0.55]
[1729275021054,0.04122213,2650.7,2649.7,0.55]
[1729275021694,0.04122213,2650.7,2649.8,0.52658792]
[1729275022311,0.04122213,2650.7,2649.9,0.55]
[1729275023538,1.2204988,2650.7,2649.9,0.55]
[1729275023706,0.04122213,2650.7,2649.9,0.55]
[1729275023894,1.2204988,2650.7,2649.9,0.55]
[1729275024114,0.04122213,2650.7,2649.9,0.55]
[1729275024337,1.2204988,2650.7,2649.9,0.55]
[1729275024896,1.2204988,2650.7,2650.0,0.52658792]
[1729275025194,0.04122213,2650.7,2650.0,1.30038792]
[1729275025620,1.17927667,2650.9,2650.0,1.30038792]
[1729275025833,0.0404466,2650.6,2650.0,1.30038792]
[1729275026037,1.17927667,2650.9,2650.0,1.30038792]
[1729275026256,0.04036439,2650.5,2650.0,1.30038792]
[1729275026549,1.17927667,2650.9,2650.0,1.30038792]
[1729275026710,0.04028218,2650.4,2650.0,1.30038792]
[1729275026910,1.17927667,2650.9,2650.0,1.30038792]
[1729275027418,1.57236889,2651.0,2650.0,1.30038792]
[1729275027419,0.04061099,2650.8,2650.1,0.55]
[1729275027615,1.97675629,2651.2,2650.6,3.0]
[1729275027616,1.17927667,2651.2,2650.6,3.0]
[1729275027831,1.17927667,2651.1,2650.7,0.3]
[1729275028043,1.17927667,2651.1,2650.3,0.55]
[1729275028247,1.17927667,2651.2,2650.3,1.07658792]
[1729275029888,1.57236889,2651.4,2650.3,1.07658792]
[1729275029889,1.17927667,2651.3,2650.3,1.07658792]
[1729275031190,2.75164556,2651.4,2650.3,1.07658792]
[1729275031392,1.17927667,2651.3,2650.3,1.87478792]
[1729275032061,1.17927667,2651.4,2650.3,1.87478792]
[1729275032604,1.17927667,2651.4,2650.3,1.3482]
[1729275033204,1.17927667,2651.4,2650.3,1.87478792]
[1729275034066,1.17927667,2651.5,2650.3,1.87478792]
[1729275034405,1.17927667,2651.4,2650.3,1.87478792]
[1729275034698,1.17927667,2651.4,2650.0,0.8298]
[1729275034902,1.17927667,2651.2,2650.0,0.8298]
[1729275035107,1.57236889,2651.4,2650.0,0.8298]
[1729275035108,1.17927667,2651.3,2650.1,0.52658792]
[1729275035611,1.17927667,2651.2,2650.1,0.52658792]
[1729275035772,0.27516456,2651.1,2650.1,0.52658792]
[1729275036291,1.17927667,2651.3,2650.1,0.52658792]
[1729275036705,1.17927667,2651.2,2650.1,0.52658792]
[1729275036912,1.17927667,2651.3,2650.1,0.52658792]
[1729275037220,1.17927667,2651.2,2650.1,0.52658792]
[1729275041245,0.07867719,2651.1,2650.1,0.52658792]
[1729275041992,1.17927667,2651.3,2650.1,0.52658792]
[1729275042185,0.27516456,2651.2,2650.1,0.52658792]
[1729275042480,0.35392246,2651.2,2650.2,0.8215]
[1729275042668,0.35392246,2651.2,2650.3,0.07260264]
[1729275042871,0.35392246,2651.2,2650.3,1.125203]
[1729275043108,0.0787579,2651.2,2650.5,0.8215]
[1729275043505,1.17927667,2651.4,2650.5,0.8215]
[1729275043672,0.07607914,2651.1,2650.5,0.8215]
[1729275043872,1.17927667,2651.4,2650.5,0.8215]
[1729275044094,0.07599844,2651.0,2650.5,0.8215]
[1729275044308,0.32376023,2651.3,2650.5,0.8215]
[1729275044519,0.07591772,2650.9,2650.5,0.8215]
[1729275044691,0.32376023,2651.3,2650.5,0.8215]
[1729275044877,0.075837,2650.8,2650.5,0.8215]
[1729275045078,1.17927667,2651.4,2650.5,0.8215]
[1729275045410,0.07571897,2650.7,2650.5,0.8215]
[1729275045573,1.17927667,2651.4,2650.5,0.8215]
[1729275045778,0.07620324,2651.3,2650.5,0.8215]
[1729275049199,0.07620324,2651.3,2650.5,1.34808792]
[1729275049401,0.07620324,2651.3,2650.6,0.7993]
[1729275049701,1.66523339,2651.5,2650.6,0.7993]
[1729275050009,1.66523339,2651.5,2650.7,0.7993]
[1729275050214,0.07374254,2651.4,2650.7,0.7993]
[1729275053317,1.17927667,2651.5,2650.7,0.7993]
[1729275053510,0.07366185,2651.3,2650.7,0.7993]
[1729275053728,1.46755776,2651.5,2650.7,0.7993]
[1729275053944,0.07358115,2651.2,2650.7,0.7993]
[1729275054154,1.17927667,2651.5,2650.7,0.7993]
[1729275054314,0.07350045,2651.1,2650.7,0.7993]
[1729275054638,1.17927667,2651.6,2650.7,0.7993]
[1729275054843,0.07341974,2651.0,2650.7,0.7993]
[1729275055016,1.17927667,2651.5,2650.7,0.7993]
[1729275055212,1.57236889,2651.6,2650.7,0.7993]
[1729275055213,0.07132702,2651.4,2650.7,0.7993]
[1729275055417,1.17927667,2651.6,2650.7,0.7993]
[1729275055744,1.25068438,2651.5,2650.7,0.7993]
[1729275055903,0.28230533,2651.4,2650.7,0.7993]
[1729275056252,0.35363235,2651.4,2650.7,0.7993]
[1729275057342,1.53290902,2651.4,2650.7,0.7993]
[1729275058788,1.53290902,2651.4,2650.8,3.0]
[1729275059103,1.25060369,2651.4,2650.7,0.7993]
[1729275059348,0.07132702,2651.4,2650.7,0.7993]
[1729275059723,0.07132702,2651.4,2650.8,3.0]
[1729275059918,1.17927667,2651.6,2650.9,0.7539]
[1729275060130,0.07124412,2651.3,2650.9,0.7539]
[1729275060439,0.07116343,2651.2,2650.9,0.7539]
[1729275060870,1.17927667,2651.6,2650.9,0.7539]
[1729275061006,0.07108272,2651.1,2650.9,0.7539]
[1729275061210,1.17927667,2651.6,2650.9,0.7539]
[1729275061511,0.0714055,2651.5,2650.9,0.7539]
[1729275063243,1.25068217,2651.5,2650.9,0.7539]
[1729275063451,0.0714055,2651.5,2650.9,0.7539]
[1729275064620,1.25068217,2651.5,2650.9,0.7539]
[1729275065752,0.0714055,2651.5,2650.9,0.7539]
[1729275066120,0.1311653,2651.7,2650.9,0.7539]
[1729275068408,1.18534929,2651.5,2650.9,0.7539]
[1729275068698,0.07056815,2651.4,2650.9,0.7539]
[1729275070301,1.25591744,2651.4,2650.9,0.7539]
[1729275070618,1.53955576,2651.4,2650.4,0.77]
[1729275072008,1.18534929,2651.3,2650.4,0.77]
[1729275072204,0.07045941,2651.2,2650.4,0.77]
[1729275074131,0.07045941,2651.2,2650.6,0.779]
[1729275081909,0.07045941,2651.2,2650.8,3.0]
[1729275082141,1.18534929,2651.4,2650.6,0.779]
[1729275082341,0.06802888,2651.1,2650.6,0.779]
[1729275082539,1.18534929,2651.4,2650.6,0.779]
[1729275082843,1.65959376,2651.4,2650.6,0.779]
[1729275083041,0.06819247,2651.3,2650.6,0.779]
[1729275086873,1.25354176,2651.3,2650.6,0.779]
[1729275087172,1.25354176,2651.3,2650.2,0.8065]
[1729275087376,1.18534929,2651.1,2650.2,0.8065]
[1729275087848,1.25328652,2651.0,2650.2,0.8065]
[1729275090644,0.06793723,2651.0,2650.2,0.8065]
[1729275092480,0.35131245,2651.0,2650.2,0.8065]
[1729275092783,1.18534929,2650.9,2650.1,0.39306569]
[1729275093284,0.06771218,2650.8,2650.1,0.39306569]
[1729275097196,1.18534929,2650.9,2650.1,0.39306569]
[1729275097491,0.06771218,2650.8,2650.1,0.39306569]
[1729275098094,1.46872451,2651.0,2650.1,0.39306569]
[1729275098265,0.06763145,2650.7,2650.1,0.39306569]
[1729275098466,1.46872451,2651.0,2650.1,0.39306569]
[1729275098883,0.0677929,2650.9,2650.1,0.39306569]
[1729275100371,1.25314219,2650.9,2650.1,0.39306569]
[1729275100571,0.0677929,2650.9,2650.0,0.8172]
[1729275100767,0.37949121,2650.9,2650.0,0.8172]
[1729275100972,1.5648405,2650.9,2650.0,0.8172]
[1729275101172,0.37949121,2650.9,2650.0,0.8172]
[1729275103267,1.5648405,2650.9,2650.0,0.8172]
[1729275103495,1.25314219,2650.9,2650.0,0.8172]
[1729275104474,0.0677929,2650.9,2650.0,0.8172]
[1729275104674,1.25314219,2650.9,2650.0,0.8172]
[1729275104918,1.25314219,2650.9,2649.8,1.22103578]
[1729275105083,1.5648405,2650.9,2649.9,0.53117489]
[1729275105414,1.4970476,2650.9,2649.9,0.53117489]
[1729275105711,0.06762661,2650.8,2649.9,0.53117489]
[1729275106808,1.4970476,2650.9,2649.9,0.53117489]
[1729275107407,0.06762661,2650.8,2649.8,1.22103578]
[1729275107618,1.2529759,2650.8,2649.7,0.58662523]
[1729275107767,1.18534929,2650.7,2649.7,0.58662523]
[1729275107971,1.2529759,2650.8,2649.7,0.58662523]
[1729275108205,1.18534929,2650.7,2649.7,0.58662523]
[1729275108423,1.25278766,2650.7,2649.8,0.91396131]
[1729275108624,1.18534929,2650.7,2649.8,0.91396131]
[1729275108790,0.06735764,2650.6,2649.8,0.91396131]
[1729275109177,1.18534929,2650.7,2649.8,0.91396131]
[1729275109400,1.18534929,2650.7,2649.7,0.58662523]
[1729275109603,1.18534929,2650.5,2649.7,0.58662523]
[1729275110124,0.06715665,2650.4,2649.7,0.58662523]
[1729275110893,1.18534929,2650.6,2649.7,0.58662523]
[1729275111086,0.0670759,2650.3,2649.7,0.58662523]
[1729275111287,1.18534929,2650.6,2649.7,0.58662523]
[1729275111523,0.06699514,2650.2,2649.7,0.58662523]
[1729275111827,1.18534929,2650.3,2649.0,7.68331674]
[1729275112026,1.18534929,2650.3,2649.2,0.05797414]
[1729275112027,0.06691438,2650.1,2649.2,0.05797414]
[1729275112181,1.46862223,2650.1,2649.0,0.56625564]
[1729275112518,0.06679191,2650.0,2649.0,0.56625564]
[1729275113018,0.06679191,2650.0,2649.1,0.50408792]
[1729275113312,0.06679191,2650.0,2649.3,3.0]
[1729275113715,1.18534929,2650.3,2649.2,0.07041089]
[1729275113925,0.06655968,2649.9,2649.2,0.07041089]
[1729275114075,0.2765815,2650.2,2649.2,0.07041089]
[1729275114278,0.06672122,2650.1,2649.2,0.07041089]
[1729275114780,1.18534929,2650.3,2649.2,0.07041089]
[1729275115204,0.06680199,2650.2,2649.2,0.07041089]
[1729275115589,0.55,2650.1,2649.2,0.07041089]
[1729275115795,0.55,2650.1,2648.9,0.07233776]
[1729275115981,0.066568,2650.0,2648.9,0.07233776]
[1729275116314,0.066568,2650.0,2648.8,0.7614]
[1729275116515,0.066568,2650.0,2648.9,0.00886678]
[1729275116825,0.066568,2650.0,2648.9,0.5129547]
[1729275117402,0.55,2650.3,2648.9,0.5129547]
[1729275117604,0.06420577,2649.9,2648.9,0.7323084]
[1729275117891,0.06412499,2649.8,2648.9,0.7323084]
[1729275118403,0.55,2650.3,2648.9,0.7323084]
[1729275118594,0.55,2650.4,2648.9,0.7323084]
[1729275118796,0.06444369,2650.2,2648.9,0.7323084]
[1729275119002,0.06452444,2650.3,2648.9,0.7323084]
[1729275119321,0.06444369,2650.2,2648.9,0.7323084]
[1729275120226,0.06444369,2650.2,2648.9,0.22822048]
[1729275120429,0.06444369,2650.2,2649.0,0.57926247]
[1729275120596,0.06444369,2650.2,2649.1,0.08377856]
[1729275120793,0.06444369,2650.2,2649.2,3.0]
[1729275121018,0.06444369,2650.2,2649.3,0.11784629]
[1729275121317,0.06444369,2650.2,2649.1,0.13168753]
[1729275123226,0.55,2650.1,2648.7,0.39316982]
[1729275123564,1.73534929,2649.8,2648.2,0.8164]
[1729275123765,0.55,2649.6,2648.5,0.11018395]
[1729275124057,0.55,2649.6,2648.2,0.8164]
[1729275124225,0.06168749,2649.5,2648.2,0.8164]
[1729275124426,0.06168749,2649.5,2648.0,0.8164]
[1729275125060,0.55,2649.4,2648.0,0.8164]
[1729275125226,0.55,2649.4,2647.8,0.7678]
[1729275125426,0.06148853,2649.3,2647.8,0.7678]
[1729275125738,0.06148853,2649.3,2647.8,1.23312557]
[1729275128260,0.55,2649.4,2647.8,1.23312557]
[1729275128464,0.55,2649.7,2647.8,1.23312557]
[1729275128646,0.0613326,2649.3,2647.8,1.23312557]
[1729275128951,0.06114851,2649.2,2647.9,0.3777]
[1729275129354,1.73534929,2649.7,2647.9,0.3777]
[1729275129560,0.06106769,2649.1,2647.9,0.3777]
[1729275129747,0.55,2649.7,2647.9,0.3777]
[1729275130120,0.55,2649.5,2647.9,0.44506085]
[1729275130528,0.55,2649.3,2647.9,0.3777]
[1729275131073,0.06114851,2649.2,2647.9,0.3777]
[1729275131240,0.06114851,2649.2,2647.6,1.1742]
[1729275131447,0.06114851,2649.2,2647.8,0.3777]
[1729275131756,0.06107428,2649.1,2647.8,0.3777]
[1729275132160,0.55,2649.3,2647.7,0.22301153]
[1729275132635,0.06115511,2649.2,2647.7,0.22301153]
[1729275132826,0.55,2649.3,2647.7,0.22301153]
[1729275133028,0.06115511,2649.2,2647.7,0.22301153]
[1729275133259,0.55,2649.3,2647.7,0.22301153]
[1729275133483,0.06115511,2649.2,2647.7,0.22301153]
[1729275133764,0.55,2649.3,2647.7,0.22301153]
[1729275134175,0.06115511,2649.2,2647.7,0.22301153]
[1729275134376,0.55,2649.1,2647.6,0.7965]
[1729275135031,0.06099345,2649.0,2647.6,0.7965]
[1729275135976,0.06099345,2649.0,2647.5,0.5905897]
[1729275136183,0.06099345,2649.0,2647.6,0.06485217]
[1729275136849,0.55,2648.9,2647.6,0.06485217]
[1729275137371,0.06073067,2648.8,2647.6,0.06485217]
[1729275137901,0.55,2648.7,2647.3,0.39328487]
[1729275138175,0.55,2648.7,2647.4,0.83318582]
[1729275138360,0.06051183,2648.6,2647.4,0.06485733]
[1729275138733,0.55,2648.7,2647.4,0.06485733]
[1729275139177,0.06051183,2648.6,2647.4,0.5301829]
[1729275139382,0.06051183,2648.6,2647.5,0.46532557]
[1729275139677,0.55,2649.4,2647.5,0.46532557]
[1729275139860,0.55,2649.2,2647.5,0.46532557]
[1729275140062,0.06091604,2649.1,2647.5,0.46532557]
[1729275140261,0.55,2649.0,2647.5,0.46532557]
[1729275140576,0.05876922,2648.9,2647.5,0.46532557]
[1729275141836,0.355,2649.3,2647.5,0.46532557]
[1729275142298,0.05901171,2649.2,2647.5,0.46532557]
[1729275142655,0.05901171,2649.2,2647.6,0.763]
[1729275143262,0.05901171,2649.2,2647.6,1.22832557]
[1729275143469,0.05901171,2649.2,2647.7,0.55]
[1729275143739,0.05901171,2649.2,2647.8,0.763]
[1729275143984,0.05901171,2649.2,2647.9,0.47783256]
[1729275144138,7.47,2650.1,2647.9,0.02559986]
[1729275144337,0.0587748,2649.1,2648.0,0.789]
[1729275144573,7.47,2650.1,2648.1,0.02575485]
[1729275144976,0.05950201,2650.0,2648.1,0.02575485]
[1729275145281,0.55,2649.9,2648.0,0.789]
[1729275145485,0.05934045,2649.8,2648.0,0.789]
[1729275145688,0.55,2649.7,2648.0,0.789]
[1729275145975,0.05917887,2649.6,2648.1,0.55]
[1729275146185,1.00236181,2650.3,2648.1,3.55]
[1729275146485,1.00236181,2650.3,2648.2,1.1629]
[1729275146836,0.05972071,2650.2,2648.2,1.1629]
[1729275147579,0.55,2650.1,2648.2,1.1629]
[1729275147786,0.60963994,2650.1,2648.2,1.1629]
[1729275148682,0.60963994,2650.1,2648.3,0.8307]
[1729275148880,0.60963994,2650.1,2648.4,0.19936]
[1729275149042,0.60963994,2650.1,2648.4,0.27481159]
[1729275150741,0.60963994,2650.1,2648.4,0.19936]
[1729275152447,0.60963994,2650.1,2648.4,0.66468557]
[1729275153064,0.60963994,2650.1,2648.4,0.19936]
[1729275154546,1.79498923,2650.1,2648.4,0.19936]
[1729275154760,0.55,2649.9,2648.4,0.19936]
[1729275155152,0.0577375,2649.8,2648.4,0.19936]
[1729275161727,1.24308679,2649.8,2648.4,0.19936]
[1729275162319,1.18534929,2649.7,2648.4,0.19936]
[1729275162618,0.05420671,2649.7,2648.4,0.19936]
[1729275162824,0.39120888,2649.7,2648.4,0.19936]
[1729275164490,1.57655817,2649.7,2648.4,0.19936]
[1729275165098,0.39120888,2649.7,2648.4,0.19936]
[1729275165587,1.57655817,2649.7,2648.5,0.7879]
[1729275167319,0.39120888,2649.7,2648.5,0.7879]
[1729275167632,1.239556,2649.7,2648.5,0.7879]
[1729275167778,0.05420671,2649.7,2648.6,1.01532557]
[1729275167983,1.18534929,2650.1,2648.8,0.55]
[1729275168184,1.97130174,2650.4,2649.4,3.0]